[Event "*** Titled Tuesday Blitz"]
[Site "Chess.com"]
[Date "2020.12.29"]
[Round "6"]
[White "szefru"]
[Black "ChessArchitect64"]
[Result "1/2-1/2"]
[WhiteElo "2193"]
[BlackElo "2078"]
[TimeControl "180+1"]
[EndTime "11:08:11 PST"]
[Termination "Game drawn by repetition"]

1. e4 {[%clk 0:03:00.9]} 1... c5 {[%clk 0:02:58.8]} 2. d4 {[%clk 0:03:00.6]}
2... cxd4 {[%clk 0:02:57.6]} 3. c3 {[%clk 0:03:00.2]} 3... dxc3 {[%clk 0:02:55]}
4. Bc4 {[%clk 0:03:00.1]} 4... cxb2 {[%clk 0:02:53.8]} 5. Bxb2 {[%clk 0:03:01]}
5... e6 {[%clk 0:02:52]} 6. f4 {[%clk 0:02:56.1]} 6... Nc6 {[%clk 0:02:51.7]} 7.
Nf3 {[%clk 0:02:55.7]} 7... Nf6 {[%clk 0:02:50.2]} 8. e5 {[%clk 0:02:55.5]} 8...
Ng8 {[%clk 0:02:48.9]} 9. O-O {[%clk 0:02:54.9]} 9... Nh6 {[%clk 0:02:36.1]} 10.
Kh1 {[%clk 0:02:53.4]} 10... Be7 {[%clk 0:02:30.7]} 11. Nc3 {[%clk 0:02:52.9]}
11... O-O {[%clk 0:02:30.5]} 12. Ne4 {[%clk 0:02:53]} 12... Nf5 {[%clk
0:02:24.8]} 13. g4 {[%clk 0:02:34.7]} 13... Ne3 {[%clk 0:02:23.3]} 14. Qe2
{[%clk 0:02:31.2]} 14... Nxf1 {[%clk 0:02:21]} 15. Rxf1 {[%clk 0:02:32.1]} 15...
a6 {[%clk 0:02:15.2]} 16. f5 {[%clk 0:02:24.8]} 16... d5 {[%clk 0:02:08.7]} 17.
exd6 {[%clk 0:02:20.8]} 17... exf5 {[%clk 0:01:54.4]} 18. dxe7 {[%clk
0:02:10.7]} 18... Qxe7 {[%clk 0:01:48.9]} 19. gxf5 {[%clk 0:01:59.8]} 19... Bxf5
{[%clk 0:01:46.8]} 20. Rg1 {[%clk 0:01:55.3]} 20... Bg6 {[%clk 0:01:37.8]} 21.
Bd5 {[%clk 0:01:45.5]} 21... Rad8 {[%clk 0:01:33.9]} 22. Bxc6 {[%clk 0:01:44.2]}
22... bxc6 {[%clk 0:01:32.8]} 23. Nf6+ {[%clk 0:01:44.4]} 23... Qxf6 {[%clk
0:01:26.8]} 24. Bxf6 {[%clk 0:01:43.6]} 24... gxf6 {[%clk 0:01:26.8]} 25. Qb2
{[%clk 0:01:34.6]} 25... Kg7 {[%clk 0:01:20.9]} 26. Nh4 {[%clk 0:01:29.2]} 26...
Rd5 {[%clk 0:01:19]} 27. Rf1 {[%clk 0:01:20.8]} 27... Rd6 {[%clk 0:01:08.9]} 28.
Nf5+ {[%clk 0:01:18.4]} 28... Bxf5 {[%clk 0:01:08.2]} 29. Rxf5 {[%clk
0:01:18.4]} 29... Rfd8 {[%clk 0:01:08.1]} 30. Rf1 {[%clk 0:01:10.2]} 30... R8d7
{[%clk 0:00:57.4]} 31. Rg1+ {[%clk 0:01:07.5]} 31... Kf8 {[%clk 0:00:55.4]} 32.
Re1 {[%clk 0:01:02.3]} 32... Kg7 {[%clk 0:00:52.3]} 33. Qg2+ {[%clk 0:01:01.2]}
33... Kf8 {[%clk 0:00:50.3]} 34. Qh3 {[%clk 0:00:58.3]} 34... Rd1 {[%clk
0:00:37.5]} 35. Qh6+ {[%clk 0:00:45.7]} 35... Kg8 {[%clk 0:00:33.8]} 36. Rxd1
{[%clk 0:00:43.9]} 36... Rxd1+ {[%clk 0:00:33.4]} 37. Kg2 {[%clk 0:00:44.2]}
37... Rd6 {[%clk 0:00:30.2]} 38. Kf3 {[%clk 0:00:42.8]} 38... Rd3+ {[%clk
0:00:20.4]} 39. Ke4 {[%clk 0:00:41.7]} 39... Rd6 {[%clk 0:00:17.9]} 40. Kf5
{[%clk 0:00:41.5]} 40... Re6 {[%clk 0:00:17.3]} 41. Qd2 {[%clk 0:00:39.2]} 41...
Kg7 {[%clk 0:00:16.1]} 42. h4 {[%clk 0:00:38.9]} 42... Re5+ {[%clk 0:00:16.1]}
43. Kf4 {[%clk 0:00:37.8]} 43... Kg6 {[%clk 0:00:10.3]} 44. Qd3+ {[%clk
0:00:35.7]} 44... Kh6 {[%clk 0:00:10.5]} 45. Qd7 {[%clk 0:00:33.6]} 45... Kg6
{[%clk 0:00:07.6]} 46. Qxc6 {[%clk 0:00:33.1]} 46... Rf5+ {[%clk 0:00:07.3]} 47.
Kg4 {[%clk 0:00:32.7]} 47... a5 {[%clk 0:00:03.7]} 48. a4 {[%clk 0:00:31.2]}
48... Re5 {[%clk 0:00:03.2]} 49. Qd7 {[%clk 0:00:18.9]} 49... Kg7 {[%clk
0:00:03.4]} 50. h5 {[%clk 0:00:18.3]} 50... Rg5+ {[%clk 0:00:03.4]} 51. Kh4
{[%clk 0:00:18.1]} 51... Re5 {[%clk 0:00:03.5]} 52. Qg4+ {[%clk 0:00:17.2]}
52... Rg5 {[%clk 0:00:03.7]} 53. Qd4 {[%clk 0:00:15.9]} 53... Re5 {[%clk
0:00:04]} 54. h6+ {[%clk 0:00:15.3]} 54... Kxh6 {[%clk 0:00:03]} 55. Qf4+ {[%clk
0:00:14.6]} 55... Kg6 {[%clk 0:00:03.3]} 56. Qg4+ {[%clk 0:00:14.3]} 56... Rg5
{[%clk 0:00:03.7]} 57. Qd4 {[%clk 0:00:12.7]} 57... Kg7 {[%clk 0:00:03.5]} 58.
Qd6 {[%clk 0:00:11.1]} 58... Re5 {[%clk 0:00:03.9]} 59. Qb6 {[%clk 0:00:10.6]}
59... Rg5 {[%clk 0:00:04.2]} 60. Qa6 {[%clk 0:00:10.1]} 60... Re5 {[%clk
0:00:04.2]} 61. Kg4 {[%clk 0:00:10.1]} 61... Rg5+ {[%clk 0:00:04.6]} 62. Kf4
{[%clk 0:00:10.3]} 62... h5 {[%clk 0:00:04.4]} 63. Qc8 {[%clk 0:00:09.7]} 63...
Rg4+ {[%clk 0:00:04.4]} 64. Kf5 {[%clk 0:00:09.5]} 64... Rg5+ {[%clk 0:00:04.9]}
65. Kf4 {[%clk 0:00:09.3]} 65... Re5 {[%clk 0:00:05.6]} 66. Qh3 {[%clk
0:00:08.4]} 66... Rg5 {[%clk 0:00:05.5]} 67. Qd7 {[%clk 0:00:07.6]} 67... Rg4+
{[%clk 0:00:05.8]} 68. Kf5 {[%clk 0:00:07.3]} 68... Rg5+ {[%clk 0:00:06.1]} 69.
Kf4 {[%clk 0:00:07.5]} 69... Kg6 {[%clk 0:00:06.4]} 70. Qc7 {[%clk 0:00:07]}
70... Rg4+ {[%clk 0:00:06.5]} 71. Kf3 {[%clk 0:00:07.1]} 71... Rg5 {[%clk
0:00:06.9]} 72. Qc2+ {[%clk 0:00:07.2]} 72... Kg7 {[%clk 0:00:07.3]} 73. Qd2
{[%clk 0:00:07.2]} 73... Re5 {[%clk 0:00:07.5]} 74. Kf4 {[%clk 0:00:07]} 74...
Rg5 {[%clk 0:00:07.5]} 75. Qd3 {[%clk 0:00:06.5]} 75... Re5 {[%clk 0:00:07.4]}
76. Qh3 {[%clk 0:00:06.4]} 76... Rg5 {[%clk 0:00:07.3]} 77. Qd7 {[%clk
0:00:07.3]} 1/2-1/2

[Event "*** Titled Tuesday Blitz"]
[Site "Chess.com"]
[Date "2020.12.29"]
[Round "6"]
[White "ferdipy"]
[Black "Gulkov_Igor"]
[Result "0-1"]
[WhiteElo "2188"]
[BlackElo "2548"]
[TimeControl "180+1"]
[EndTime "11:08:37 PST"]
[Termination "Gulkov_Igor won on time"]

1. d4 {[%clk 0:02:59.7]} 1... Nf6 {[%clk 0:02:59.5]} 2. Nf3 {[%clk 0:03:00.1]}
2... g6 {[%clk 0:02:58.9]} 3. Bg5 {[%clk 0:03:00.5]} 3... Bg7 {[%clk 0:02:58.6]}
4. Nbd2 {[%clk 0:03:01]} 4... d5 {[%clk 0:02:59]} 5. e3 {[%clk 0:03:01.5]} 5...
c5 {[%clk 0:02:59.5]} 6. c3 {[%clk 0:03:01.7]} 6... Qb6 {[%clk 0:02:59.7]} 7.
Qc1 {[%clk 0:03:01.8]} 7... Nc6 {[%clk 0:02:59.2]} 8. Bd3 {[%clk 0:03:02.2]}
8... O-O {[%clk 0:02:59]} 9. O-O {[%clk 0:03:02.5]} 9... Re8 {[%clk 0:02:59.3]}
10. h3 {[%clk 0:02:48.6]} 10... e5 {[%clk 0:02:53.4]} 11. dxe5 {[%clk
0:02:48.1]} 11... Nxe5 {[%clk 0:02:52.5]} 12. Nxe5 {[%clk 0:02:48.3]} 12... Rxe5
{[%clk 0:02:52.5]} 13. Bf4 {[%clk 0:02:48.7]} 13... Re8 {[%clk 0:02:52.2]} 14.
Nf3 {[%clk 0:02:47.7]} 14... Be6 {[%clk 0:02:30.4]} 15. a4 {[%clk 0:02:47.3]}
15... Ne4 {[%clk 0:02:07.5]} 16. a5 {[%clk 0:02:44.6]} 16... Qc6 {[%clk
0:02:02.5]} 17. a6 {[%clk 0:02:43.3]} 17... b6 {[%clk 0:02:01.9]} 18. c4 {[%clk
0:02:23.9]} 18... dxc4 {[%clk 0:01:57.4]} 19. Bxc4 {[%clk 0:02:24]} 19... Bxb2
{[%clk 0:01:47.6]} 20. Qxb2 {[%clk 0:02:21.3]} 20... Bxc4 {[%clk 0:01:47.4]} 21.
Ne5 {[%clk 0:02:19.9]} 21... Rxe5 {[%clk 0:01:46]} 22. Qxe5 {[%clk 0:02:11.7]}
22... Bxf1 {[%clk 0:01:45]} 23. Rxf1 {[%clk 0:02:11.5]} 23... Re8 {[%clk
0:01:43.6]} 24. Qb2 {[%clk 0:02:02.9]} 24... Qf6 {[%clk 0:01:40.9]} 25. Qb5
{[%clk 0:02:00.9]} 25... Qe6 {[%clk 0:01:36.3]} 26. Qb2 {[%clk 0:01:51.7]} 26...
c4 {[%clk 0:01:28.8]} 27. Rc1 {[%clk 0:01:47.5]} 27... Nc5 {[%clk 0:01:23]} 28.
Qb5 {[%clk 0:01:32]} 28... Nd3 {[%clk 0:01:05.5]} 29. Rxc4 {[%clk 0:01:29.9]}
29... Nxf4 {[%clk 0:01:05.4]} 30. Rxf4 {[%clk 0:01:28.8]} 30... Rc8 {[%clk
0:01:03]} 31. Qb2 {[%clk 0:01:17.6]} 31... Rc4 {[%clk 0:00:51.7]} 32. Rf6 {[%clk
0:01:10.8]} 32... Qc8 {[%clk 0:00:50.5]} 33. Rd6 {[%clk 0:00:44.1]} 33... Rc6
{[%clk 0:00:43.8]} 34. Rd2 {[%clk 0:00:37.4]} 34... Rc1+ {[%clk 0:00:41.9]} 35.
Kh2 {[%clk 0:00:37.7]} 35... Qc7+ {[%clk 0:00:41.9]} 36. f4 {[%clk 0:00:37.3]}
36... Rc3 {[%clk 0:00:35.4]} 37. Re2 {[%clk 0:00:15.1]} 37... Qc4 {[%clk
0:00:33]} 38. Qd2 {[%clk 0:00:14.7]} 38... Qc7 {[%clk 0:00:31]} 39. Re1 {[%clk
0:00:12.7]} 39... Rc6 {[%clk 0:00:27.7]} 40. Rd1 {[%clk 0:00:12.5]} 40... b5
{[%clk 0:00:25.1]} 41. Qb4 {[%clk 0:00:12.7]} 41... Rc5 {[%clk 0:00:23.9]} 42.
Rd4 {[%clk 0:00:11.6]} 42... Rc4 {[%clk 0:00:19.3]} 43. Qxb5 {[%clk 0:00:11]}
43... Rxd4 {[%clk 0:00:19]} 44. exd4 {[%clk 0:00:11.5]} 44... Qxf4+ {[%clk
0:00:19.2]} 45. g3 {[%clk 0:00:11.6]} 45... Qxd4 {[%clk 0:00:19.3]} 46. Qb8+
{[%clk 0:00:11.2]} 46... Kg7 {[%clk 0:00:19.7]} 47. Qb3 {[%clk 0:00:10.6]} 47...
h5 {[%clk 0:00:18.5]} 48. Qf3 {[%clk 0:00:10]} 48... Qd2+ {[%clk 0:00:16.8]} 49.
Kg1 {[%clk 0:00:10.4]} 49... Qc1+ {[%clk 0:00:15.9]} 50. Kh2 {[%clk 0:00:10.7]}
50... Qb2+ {[%clk 0:00:16.1]} 51. Kg1 {[%clk 0:00:11.2]} 51... Qa1+ {[%clk
0:00:16.4]} 52. Kh2 {[%clk 0:00:11.7]} 52... Qxa6 {[%clk 0:00:16.7]} 53. Qc3+
{[%clk 0:00:12.2]} 53... Kh7 {[%clk 0:00:16.2]} 54. Qf3 {[%clk 0:00:11.3]} 54...
Qe6 {[%clk 0:00:14.9]} 55. Qb7 {[%clk 0:00:11]} 55... a6 {[%clk 0:00:14.9]} 56.
Kh1 {[%clk 0:00:11]} 56... Kg7 {[%clk 0:00:14.6]} 57. Kg2 {[%clk 0:00:11.2]}
57... Qe2+ {[%clk 0:00:13.8]} 58. Kg1 {[%clk 0:00:11.3]} 58... Qb5 {[%clk
0:00:14.4]} 59. Qc7 {[%clk 0:00:10.6]} 59... a5 {[%clk 0:00:13.7]} 60. g4 {[%clk
0:00:10.8]} 60... hxg4 {[%clk 0:00:13.3]} 61. hxg4 {[%clk 0:00:11.7]} 61... a4
{[%clk 0:00:13.6]} 62. Qc3+ {[%clk 0:00:10.3]} 62... Kh7 {[%clk 0:00:13]} 63.
Qh3+ {[%clk 0:00:10]} 63... Kg8 {[%clk 0:00:13.2]} 64. Qc3 {[%clk 0:00:09.8]}
64... Qb6+ {[%clk 0:00:13.2]} 65. Kg2 {[%clk 0:00:09.6]} 65... Qb7+ {[%clk
0:00:13.5]} 66. Kg1 {[%clk 0:00:09.7]} 66... Qb1+ {[%clk 0:00:13.2]} 67. Kg2
{[%clk 0:00:09.3]} 67... Qb3 {[%clk 0:00:13.2]} 68. Qc8+ {[%clk 0:00:08.8]}
68... Kg7 {[%clk 0:00:13.7]} 69. g5 {[%clk 0:00:09.3]} 69... Qb2+ {[%clk
0:00:12.6]} 70. Kg3 {[%clk 0:00:09.5]} 70... Qe5+ {[%clk 0:00:12.5]} 71. Kh4
{[%clk 0:00:07.3]} 71... Qf4+ {[%clk 0:00:12.6]} 72. Kh3 {[%clk 0:00:07.8]}
72... Qxg5 {[%clk 0:00:12.4]} 73. Qc3+ {[%clk 0:00:07.5]} 73... Qf6 {[%clk
0:00:12.8]} 74. Qb4 {[%clk 0:00:06.8]} 74... Qe6+ {[%clk 0:00:12.7]} 75. Kg3
{[%clk 0:00:06.4]} 75... Qe5+ {[%clk 0:00:12]} 76. Kg2 {[%clk 0:00:06.5]} 76...
Qd5+ {[%clk 0:00:10.8]} 77. Kg3 {[%clk 0:00:06.4]} 77... Qc6 {[%clk 0:00:10.9]}
78. Qd4+ {[%clk 0:00:05.9]} 78... Kg8 {[%clk 0:00:11.1]} 79. Qd8+ {[%clk
0:00:06]} 79... Kg7 {[%clk 0:00:11.2]} 80. Qd4+ {[%clk 0:00:06]} 80... f6 {[%clk
0:00:11.7]} 81. Qa7+ {[%clk 0:00:05.2]} 81... Kh6 {[%clk 0:00:11.5]} 82. Qe3+
{[%clk 0:00:05.6]} 82... g5 {[%clk 0:00:12.2]} 83. Qe7 {[%clk 0:00:05.2]} 83...
Kg6 {[%clk 0:00:11.5]} 84. Qf8 {[%clk 0:00:04]} 84... Qc7+ {[%clk 0:00:11.3]}
85. Kf2 {[%clk 0:00:04]} 85... Qb6+ {[%clk 0:00:11.1]} 86. Kg2 {[%clk
0:00:04.3]} 86... Kf5 {[%clk 0:00:11.2]} 87. Qc8+ {[%clk 0:00:03.7]} 87... Qe6
{[%clk 0:00:11.1]} 88. Qc7 {[%clk 0:00:02.3]} 88... Qe4+ {[%clk 0:00:10.5]} 89.
Kg1 {[%clk 0:00:02.8]} 89... Qd4+ {[%clk 0:00:10.3]} 90. Kg2 {[%clk 0:00:01.5]}
90... Kg6 {[%clk 0:00:11]} 0-1

[Event "*** Titled Tuesday Blitz"]
[Site "Chess.com"]
[Date "2020.12.29"]
[Round "7"]
[White "BAS8892"]
[Black "Enriquack"]
[Result "1-0"]
[WhiteElo "2643"]
[BlackElo "2395"]
[TimeControl "180+1"]
[EndTime "11:11:14 PST"]
[Termination "BAS8892 won by resignation"]

1. d4 {[%clk 0:03:00.9]} 1... Nf6 {[%clk 0:02:59.5]} 2. c4 {[%clk 0:03:00.8]}
2... c5 {[%clk 0:02:59.4]} 3. d5 {[%clk 0:03:00.8]} 3... b5 {[%clk 0:02:59.5]}
4. f3 {[%clk 0:03:00.2]} 4... e6 {[%clk 0:02:54.5]} 5. e4 {[%clk 0:03:00.3]}
5... bxc4 {[%clk 0:02:54.9]} 6. Nc3 {[%clk 0:02:57.6]} 6... exd5 {[%clk
0:02:54.7]} 7. Nxd5 {[%clk 0:02:57.6]} 7... Nxd5 {[%clk 0:02:36.7]} 8. Qxd5
{[%clk 0:02:56.8]} 8... Nc6 {[%clk 0:02:37.3]} 9. Bxc4 {[%clk 0:02:56.2]} 9...
Qf6 {[%clk 0:02:29.4]} 10. Ne2 {[%clk 0:02:55.2]} 10... Bb7 {[%clk 0:02:19.3]}
11. Bg5 {[%clk 0:02:54.1]} 11... Qg6 {[%clk 0:02:18.7]} 12. Nf4 {[%clk
0:02:52.1]} 12... Qxg5 {[%clk 0:02:12]} 13. Qxg5 {[%clk 0:02:51.2]} 1-0

[Event "*** Titled Tuesday Blitz"]
[Site "Chess.com"]
[Date "2020.12.29"]
[Round "7"]
[White "Oleksandr_Bortnyk"]
[Black "Iball95"]
[Result "1-0"]
[WhiteElo "2917"]
[BlackElo "2614"]
[TimeControl "180+1"]
[EndTime "11:12:30 PST"]
[Termination "Oleksandr_Bortnyk won by resignation"]

1. g4 {[%clk 0:03:00.9]} 1... e5 {[%clk 0:02:57.6]} 2. Bg2 {[%clk 0:02:58.2]}
2... Nc6 {[%clk 0:02:57.9]} 3. c4 {[%clk 0:02:57.5]} 3... Bc5 {[%clk 0:02:57.8]}
4. e3 {[%clk 0:02:55.9]} 4... a6 {[%clk 0:02:55.5]} 5. Nc3 {[%clk 0:02:55.6]}
5... d6 {[%clk 0:02:55.6]} 6. h4 {[%clk 0:02:55.4]} 6... h5 {[%clk 0:02:51.4]}
7. g5 {[%clk 0:02:55]} 7... Bg4 {[%clk 0:02:48]} 8. Qc2 {[%clk 0:02:52.2]} 8...
Nge7 {[%clk 0:02:41]} 9. a3 {[%clk 0:02:50.7]} 9... Ba7 {[%clk 0:02:38.7]} 10.
b4 {[%clk 0:02:48.2]} 10... Qd7 {[%clk 0:02:36.7]} 11. Bb2 {[%clk 0:02:46.2]}
11... O-O {[%clk 0:02:26]} 12. Be4 {[%clk 0:02:38.5]} 12... Rfe8 {[%clk
0:02:18]} 13. Nge2 {[%clk 0:02:38.1]} 13... Bf5 {[%clk 0:02:13.6]} 14. Ng3
{[%clk 0:02:38.1]} 14... Bxe4 {[%clk 0:02:09.4]} 15. Ncxe4 {[%clk 0:02:36.7]}
15... Rad8 {[%clk 0:02:04.7]} 16. Nxh5 {[%clk 0:02:35.8]} 16... Qf5 {[%clk
0:01:55.5]} 17. O-O-O {[%clk 0:02:32.4]} 17... d5 {[%clk 0:01:50.8]} 18. cxd5
{[%clk 0:02:33.3]} 18... Rxd5 {[%clk 0:01:49.3]} 19. Nef6+ {[%clk 0:02:30]}
19... gxf6 {[%clk 0:01:48]} 20. Nxf6+ {[%clk 0:02:30.9]} 20... Kf8 {[%clk
0:01:48.3]} 21. Qxf5 {[%clk 0:02:31.3]} 21... Nxf5 {[%clk 0:01:39.3]} 22. Nxd5
{[%clk 0:02:31.3]} 1-0

[Event "*** Titled Tuesday Blitz"]
[Site "Chess.com"]
[Date "2020.12.29"]
[Round "7"]
[White "Dinamo81"]
[Black "drragnar1"]
[Result "1-0"]
[WhiteElo "2667"]
[BlackElo "2443"]
[TimeControl "180+1"]
[EndTime "11:13:04 PST"]
[Termination "Dinamo81 won by resignation"]

1. d4 {[%clk 0:03:00.9]} 1... Nf6 {[%clk 0:02:58.8]} 2. Bf4 {[%clk 0:03:00.1]}
2... c5 {[%clk 0:02:53.6]} 3. e3 {[%clk 0:02:59]} 3... cxd4 {[%clk 0:02:48]} 4.
exd4 {[%clk 0:02:58.9]} 4... d5 {[%clk 0:02:47.5]} 5. Nc3 {[%clk 0:02:53.7]}
5... Nc6 {[%clk 0:02:47.4]} 6. Nb5 {[%clk 0:02:53.3]} 6... e5 {[%clk 0:02:24.3]}
7. dxe5 {[%clk 0:02:44.8]} 7... Ne4 {[%clk 0:02:10.2]} 8. Qxd5 {[%clk
0:02:41.3]} 8... Qa5+ {[%clk 0:01:25.8]} 9. c3 {[%clk 0:02:37.9]} 9... Nc5
{[%clk 0:01:22.8]} 10. b4 {[%clk 0:02:21.2]} 10... Nxb4 {[%clk 0:01:21.5]} 11.
cxb4 {[%clk 0:02:20.5]} 11... Qxb4+ {[%clk 0:01:20.5]} 12. Bd2 {[%clk
0:02:17.1]} 1-0

[Event "*** Titled Tuesday Blitz"]
[Site "Chess.com"]
[Date "2020.12.29"]
[Round "7"]
[White "Titus369"]
[Black "javirec"]
[Result "1-0"]
[WhiteElo "2539"]
[BlackElo "2384"]
[TimeControl "180+1"]
[EndTime "11:13:05 PST"]
[Termination "Titus369 won by resignation"]

1. e4 {[%clk 0:03:00.9]} 1... e5 {[%clk 0:02:58.8]} 2. Nf3 {[%clk 0:03:00.6]}
2... Nc6 {[%clk 0:02:59.4]} 3. Bb5 {[%clk 0:02:59]} 3... a6 {[%clk 0:02:59.9]}
4. Ba4 {[%clk 0:02:58.5]} 4... Nf6 {[%clk 0:03:00.1]} 5. O-O {[%clk 0:02:55.8]}
5... Be7 {[%clk 0:03:00.6]} 6. d3 {[%clk 0:02:55]} 6... b5 {[%clk 0:02:59.9]} 7.
Bb3 {[%clk 0:02:54.7]} 7... d6 {[%clk 0:03:00.5]} 8. a3 {[%clk 0:02:49.8]} 8...
O-O {[%clk 0:03:00.3]} 9. Nc3 {[%clk 0:02:49.7]} 9... Be6 {[%clk 0:02:59.9]} 10.
Nd5 {[%clk 0:02:48.3]} 10... Re8 {[%clk 0:02:50.2]} 11. h3 {[%clk 0:02:46.6]}
11... Nd7 {[%clk 0:02:46.7]} 12. c3 {[%clk 0:02:44.5]} 12... Nc5 {[%clk
0:02:46.4]} 13. Ba2 {[%clk 0:02:43.3]} 13... Bf8 {[%clk 0:02:44.1]} 14. Re1
{[%clk 0:02:39.6]} 14... Ne7 {[%clk 0:02:38.7]} 15. d4 {[%clk 0:02:28.9]} 15...
Nd7 {[%clk 0:02:38.8]} 16. Nxe7+ {[%clk 0:02:27.2]} 16... Qxe7 {[%clk
0:02:35.9]} 17. d5 {[%clk 0:02:27.7]} 17... Nc5 {[%clk 0:02:36.2]} 18. dxe6
{[%clk 0:02:26.7]} 18... fxe6 {[%clk 0:02:37.1]} 19. Be3 {[%clk 0:02:20]} 19...
Nb7 {[%clk 0:02:37.2]} 20. Ng5 {[%clk 0:02:19.3]} 20... Nd8 {[%clk 0:02:37.2]}
21. f4 {[%clk 0:02:15.7]} 21... exf4 {[%clk 0:02:35]} 22. Bxf4 {[%clk
0:02:16.6]} 22... h6 {[%clk 0:02:35.4]} 23. Nf3 {[%clk 0:02:15.9]} 23... g6
{[%clk 0:02:35.5]} 24. Qd2 {[%clk 0:02:12.7]} 24... Kh7 {[%clk 0:02:35.4]} 25.
e5 {[%clk 0:02:12]} 25... d5 {[%clk 0:02:35.2]} 26. Rad1 {[%clk 0:02:08.7]}
26... Bg7 {[%clk 0:02:35]} 27. Bb1 {[%clk 0:02:08.5]} 27... Nf7 {[%clk
0:02:30.2]} 28. Qd3 {[%clk 0:02:07.3]} 28... Nh8 {[%clk 0:02:30.3]} 29. g3
{[%clk 0:02:05.5]} 29... c5 {[%clk 0:02:30.2]} 30. Nh4 {[%clk 0:02:05.6]} 30...
Qf7 {[%clk 0:02:29.4]} 31. Rf1 {[%clk 0:02:05.4]} 31... c4 {[%clk 0:02:25.1]}
32. Qc2 {[%clk 0:02:05.3]} 32... Re7 {[%clk 0:02:21.4]} 33. Bxh6 {[%clk
0:02:01.5]} 33... Bxh6 {[%clk 0:02:20.3]} 34. Rxf7+ {[%clk 0:02:01]} 34... Rxf7
{[%clk 0:02:21.2]} 35. Nxg6 {[%clk 0:02:01.6]} 35... Be3+ {[%clk 0:02:17.9]} 36.
Kg2 {[%clk 0:01:58.6]} 36... Rf2+ {[%clk 0:02:17.3]} 37. Qxf2 {[%clk 0:01:58.8]}
37... Bxf2 {[%clk 0:02:18.2]} 38. Nxh8+ {[%clk 0:01:59.3]} 38... Kxh8 {[%clk
0:02:18.7]} 39. Kxf2 {[%clk 0:02:00.2]} 39... d4 {[%clk 0:02:18.8]} 40. Rxd4
{[%clk 0:01:59.6]} 1-0

[Event "*** Titled Tuesday Blitz"]
[Site "Chess.com"]
[Date "2020.12.29"]
[Round "7"]
[White "StellarChessPro"]
[Black "Vusatiuk_Vladimir"]
[Result "1-0"]
[WhiteElo "2495"]
[BlackElo "2307"]
[TimeControl "180+1"]
[EndTime "11:13:16 PST"]
[Termination "StellarChessPro won by resignation"]

1. d4 {[%clk 0:02:59.9]} 1... Nf6 {[%clk 0:02:59.9]} 2. Bg5 {[%clk 0:02:59.9]}
2... Ne4 {[%clk 0:03:00.1]} 3. Bf4 {[%clk 0:03:00.3]} 3... d5 {[%clk 0:03:00.8]}
4. f3 {[%clk 0:03:00.7]} 4... Nf6 {[%clk 0:03:01.1]} 5. e4 {[%clk 0:03:01.4]}
5... dxe4 {[%clk 0:02:58.8]} 6. Nc3 {[%clk 0:03:01.9]} 6... Bf5 {[%clk
0:02:52.3]} 7. g4 {[%clk 0:03:02.3]} 7... Bg6 {[%clk 0:02:52.2]} 8. fxe4 {[%clk
0:03:02.8]} 8... Nxe4 {[%clk 0:02:49.1]} 9. Bg2 {[%clk 0:03:02.4]} 9... Nxc3
{[%clk 0:02:44.9]} 10. bxc3 {[%clk 0:03:03.3]} 10... c6 {[%clk 0:02:45]} 11. Rb1
{[%clk 0:03:03.2]} 11... Qc8 {[%clk 0:02:21.1]} 12. Nf3 {[%clk 0:03:01.6]} 12...
h5 {[%clk 0:02:20.8]} 13. Ne5 {[%clk 0:03:00.1]} 13... Bh7 {[%clk 0:02:14.5]}
14. gxh5 {[%clk 0:02:59.1]} 14... Bf5 {[%clk 0:02:07.6]} 15. O-O {[%clk
0:02:58.7]} 15... e6 {[%clk 0:02:06.8]} 16. Bg3 {[%clk 0:02:57.5]} 16... Nd7
{[%clk 0:02:05.8]} 17. Qe2 {[%clk 0:02:53.5]} 17... Nxe5 {[%clk 0:01:59.2]} 18.
Bxe5 {[%clk 0:02:48.3]} 18... Qd7 {[%clk 0:01:57.2]} 19. c4 {[%clk 0:02:46.1]}
19... O-O-O {[%clk 0:01:31.3]} 20. d5 {[%clk 0:02:43.8]} 20... exd5 {[%clk
0:01:30.7]} 21. cxd5 {[%clk 0:02:44]} 21... Bc5+ {[%clk 0:01:29]} 22. Kh1 {[%clk
0:02:43.2]} 22... Bg4 {[%clk 0:01:29.4]} 23. Qc4 {[%clk 0:02:39.8]} 23... Qe7
{[%clk 0:01:04.2]} 24. Qxg4+ {[%clk 0:02:37.3]} 24... Rd7 {[%clk 0:01:01.4]} 25.
dxc6 {[%clk 0:02:37.2]} 25... Qxe5 {[%clk 0:00:58.6]} 26. Qxd7+ {[%clk
0:02:36.3]} 1-0

[Event "*** Titled Tuesday Blitz"]
[Site "Chess.com"]
[Date "2020.12.29"]
[Round "7"]
[White "MikeSailer"]
[Black "davidkalashian"]
[Result "0-1"]
[WhiteElo "2159"]
[BlackElo "2571"]
[TimeControl "180+1"]
[EndTime "11:13:21 PST"]
[Termination "davidkalashian won on time"]

1. d4 {[%clk 0:03:00.4]} 1... Nf6 {[%clk 0:02:59.8]} 2. Nf3 {[%clk 0:03:00.4]}
2... e6 {[%clk 0:03:00.7]} 3. Bf4 {[%clk 0:03:00.5]} 3... b6 {[%clk 0:02:51.5]}
4. e3 {[%clk 0:03:00.2]} 4... Bb7 {[%clk 0:02:51.6]} 5. Be2 {[%clk 0:03:00.8]}
5... Be7 {[%clk 0:02:51.9]} 6. h3 {[%clk 0:03:01.2]} 6... O-O {[%clk 0:02:52.8]}
7. c4 {[%clk 0:03:02]} 7... c5 {[%clk 0:02:53.7]} 8. Nc3 {[%clk 0:03:01.8]} 8...
cxd4 {[%clk 0:02:53.4]} 9. exd4 {[%clk 0:03:01.9]} 9... d5 {[%clk 0:02:53.7]}
10. O-O {[%clk 0:02:52.6]} 10... Nbd7 {[%clk 0:02:52.5]} 0-1

[Event "*** Titled Tuesday Blitz"]
[Site "Chess.com"]
[Date "2020.12.29"]
[Round "7"]
[White "DavidEgglestonIM"]
[Black "JoachimMouhamad"]
[Result "0-1"]
[WhiteElo "2489"]
[BlackElo "2383"]
[TimeControl "180+1"]
[EndTime "11:13:25 PST"]
[Termination "JoachimMouhamad won by resignation"]

1. e3 {[%clk 0:03:00.9]} 1... e5 {[%clk 0:02:59.5]} 2. d4 {[%clk 0:02:56.5]}
2... exd4 {[%clk 0:02:58.5]} 3. exd4 {[%clk 0:02:55.4]} 3... d5 {[%clk
0:02:59.2]} 4. Nf3 {[%clk 0:02:52.3]} 4... Bd6 {[%clk 0:02:58.3]} 5. c3 {[%clk
0:02:50.8]} 5... Ne7 {[%clk 0:02:56.9]} 6. Be2 {[%clk 0:02:50.5]} 6... O-O
{[%clk 0:02:56.7]} 7. O-O {[%clk 0:02:47.8]} 7... c6 {[%clk 0:02:56.4]} 8. Bg5
{[%clk 0:02:44.8]} 8... f6 {[%clk 0:02:54.6]} 9. Bh4 {[%clk 0:02:44.5]} 9... Bf5
{[%clk 0:02:52.8]} 10. Bg3 {[%clk 0:02:44.3]} 10... Bxg3 {[%clk 0:02:50.1]} 11.
hxg3 {[%clk 0:02:41.4]} 11... Nd7 {[%clk 0:02:47.6]} 12. Re1 {[%clk 0:02:40.7]}
12... g5 {[%clk 0:02:41]} 13. Nbd2 {[%clk 0:02:39.5]} 13... Qe8 {[%clk 0:02:37]}
14. Nf1 {[%clk 0:02:39.1]} 14... Qg6 {[%clk 0:02:36]} 15. Ba6 {[%clk 0:02:31.3]}
15... bxa6 {[%clk 0:02:09.9]} 16. Rxe7 {[%clk 0:02:29.2]} 16... Rfe8 {[%clk
0:02:10.3]} 17. Qe2 {[%clk 0:02:20.2]} 17... Bd3 {[%clk 0:02:00.7]} 18. Qe6+
{[%clk 0:02:16.8]} 18... Kf8 {[%clk 0:01:55.2]} 19. Qxd7 {[%clk 0:02:14.8]}
19... Rxe7 {[%clk 0:01:51.7]} 20. Qxc6 {[%clk 0:02:11.3]} 20... Rd8 {[%clk
0:01:23.7]} 21. Ne3 {[%clk 0:02:08.9]} 21... Be4 {[%clk 0:01:19.5]} 22. Qb6
{[%clk 0:02:06.8]} 22... axb6 {[%clk 0:01:11]} 0-1